bitfinex/quotes_ETHUSD_20220309
["timestamp","ask_amount","ask_price","bid_price","bid_amount"]
[1646803066543,3.5,2715.3,2714.6,1.84176]
[1646803066544,0.8885956,2715.3,2714.6,1.84176]
[1646803066743,1.3661348,2715.3,2714.6,1.84176]
[1646803067145,4.8661348,2715.3,2714.6,1.84176]
[1646803067343,6.88582395,2715.3,2714.6,1.84176]
[1646803067544,0.00179226,2715.2,2714.6,1.84176]
[1646803068545,0.2892281,2715.2,2714.6,1.84176]
[1646803068789,1.44942109,2715.2,2714.6,1.84176]
[1646803069592,2.25642967,2715.2,2714.6,1.84176]
[1646803069894,3.10018435,2715.2,2714.6,1.84176]
[1646803070693,4.63709207,2715.2,2714.6,1.84176]
[1646803071098,4.6388843,2715.2,2714.6,1.84176]
[1646803071292,4.63709207,2715.2,2714.6,1.84176]
[1646803071693,4.97990017,2715.2,2714.6,1.84176]
[1646803072094,4.97810794,2715.2,2714.6,1.84176]
[1646803072551,4.97990017,2715.2,2714.6,1.84176]
[1646803072738,3.5,2715.1,2714.5,4.08167]
[1646803072937,3.5,2715.1,2714.3,1.2277]
[1646803073143,3.5,2715.1,2714.1,2.9238]
[1646803073740,4.6347369,2715.1,2714.1,2.9238]
[1646803074546,4.6796799,2715.1,2714.0,0.00298897]
[1646803074745,1.50930231,2715.0,2714.0,0.00626848]
[1646803074946,3.5,2714.9,2714.0,0.00626848]
[1646803075145,1.50930472,2714.8,2714.0,0.00626848]
[1646803075547,1.50930472,2714.9,2714.0,0.00626848]
[1646803075748,3.5,2714.7,2714.0,0.00626848]
[1646803075946,3.5,2714.7,2714.0,0.01253689]
[1646803076145,3.5,2714.7,2714.0,0.00626841]
[1646803076391,4.47558145,2714.7,2714.0,0.00626841]
[1646803076590,4.70449805,2714.7,2714.0,0.00626841]
[1646803076790,5.92321031,2714.7,2714.0,0.00626841]
[1646803076990,5.92321031,2714.7,2713.7,3.69717]
[1646803077189,5.92321031,2714.7,2714.0,0.00616403]
[1646803077790,7.57397357,2714.7,2714.0,0.00616403]
[1646803078591,7.73400927,2714.7,2714.0,0.00616403]
[1646803078791,9.11088129,2714.7,2714.0,0.00616403]
[1646803079197,9.11208129,2714.7,2714.0,0.00616403]
[1646803079397,9.11208129,2714.7,2713.7,2.7759]
[1646803079600,1.50941301,2714.6,2714.0,0.0061717]
[1646803079797,3.5,2714.5,2714.0,0.0061717]
[1646803080438,3.5,2714.5,2713.7,3.69716]
[1646803080638,4.1171982,2714.5,2713.7,3.69716]
[1646803080837,4.94762886,2714.5,2714.0,0.00627605]
[1646803081638,5.44589002,2714.5,2714.0,0.00627605]
[1646803081840,6.59839212,2714.5,2713.7,2.7759]
[1646803082138,6.59839212,2714.5,2714.0,0.00627605]
[1646803082739,8.13529984,2714.5,2714.0,0.00627605]
[1646803082938,8.13445315,2714.5,2713.7,2.7759]
[1646803083340,8.13445315,2714.5,2714.0,0.00626788]
[1646803083792,8.47726125,2714.5,2714.0,0.00626788]
[1646803084197,1.23081035,2714.4,2714.0,0.00626788]
[1646803084398,3.5,2714.3,2714.0,0.00626788]
[1646803084797,4.94762886,2714.3,2714.0,0.00626788]
[1646803085297,4.94762886,2714.3,2713.6,0.38845058]
[1646803085496,4.94762886,2714.3,2714.0,0.0062679]
[1646803085696,5.75463744,2714.3,2714.0,0.0062679]
[1646803085897,6.59839212,2714.3,2714.0,0.0062679]
[1646803086497,6.59839212,2714.3,2713.6,0.38845058]
[1646803086697,7.17712044,2714.3,2713.6,0.38845058]
[1646803086898,8.13529984,2714.3,2714.0,0.00626845]
[1646803087102,4.63529984,2714.3,2714.0,0.00626845]
[1646803087737,4.97810794,2714.3,2713.6,1.55536601]
[1646803087938,8.47810794,2714.3,2713.6,0.38845058]
[1646803088139,8.47810794,2714.3,2714.0,0.00619744]
[1646803088942,8.47810794,2714.3,2714.0,0.00466852]
[1646803089142,8.47810794,2714.3,2713.6,0.1842]
[1646803089346,8.47810794,2714.3,2714.0,0.00619744]
[1646803089543,8.47930794,2714.3,2714.0,0.00619744]
[1646803090143,8.47930794,2714.3,2713.6,0.1842]
[1646803090345,0.94979742,2713.9,2713.6,0.1842]
[1646803090545,0.94979742,2713.9,2713.2,0.00298897]
[1646803090546,3.5,2713.8,2713.2,0.00298897]
[1646803090746,3.5,2713.8,2712.9,0.00298897]
[1646803090747,1.8045982,2713.8,2712.9,0.00298897]
[1646803090944,1.8045982,2713.8,2712.7,0.92158]
[1646803090945,6.13502886,2713.8,2712.7,0.92158]
[1646803091601,1.14734347,2713.4,2712.7,0.92158]
[1646803091807,2.26779675,2713.4,2712.7,0.92158]
[1646803092000,1.44762886,2713.4,2712.7,0.92158]
[1646803092802,2.36234878,2713.4,2712.7,0.92158]
[1646803093004,4.1713107,2713.4,2712.7,0.92158]
[1646803093207,4.1713107,2713.4,2712.5,2.24765201]
[1646803093404,4.1713107,2713.4,2712.5,1.04935201]
[1646803093807,4.1713107,2713.4,2712.4,7.36]
[1646803093808,3.5,2713.3,2712.4,7.36]
[1646803094013,3.5,2713.3,2712.8,0.00667372]
[1646803094808,4.181407,2713.3,2712.8,0.00667372]
[1646803095051,4.9114035,2713.3,2712.8,0.00667372]
[1646803095240,4.9114035,2713.3,2712.9,0.00670244]
[1646803095946,6.55609852,2713.3,2712.9,0.00670244]
[1646803096149,6.55609852,2713.3,2712.4,7.36298897]
[1646803096347,6.55609852,2713.3,2712.4,7.36]
[1646803096650,6.55609852,2713.3,2713.0,0.00670233]
[1646803096848,7.68246604,2713.3,2713.0,0.00670233]
[1646803097047,8.09547564,2713.3,2713.0,0.00670233]
[1646803097247,8.09547564,2713.3,2712.3,0.0371459]
[1646803097749,8.09547564,2713.3,2713.0,0.00670221]
[1646803097947,8.47810794,2713.3,2713.0,0.00670221]
[1646803098347,0.07911,2713.2,2713.0,0.00670221]
[1646803098548,0.07911,2713.2,2712.3,0.0371459]
[1646803098793,0.3080266,2713.2,2712.3,0.0371459]
[1646803098995,0.3080266,2713.2,2713.0,0.00646774]
[1646803098996,2.71423886,2713.2,2713.0,0.00646774]
[1646803099200,2.63512886,2713.2,2713.0,0.00646774]
[1646803099694,1.44762886,2713.2,2712.3,0.04013487]
[1646803099897,2.88406048,2713.2,2712.3,0.0371459]
[1646803100095,3.09839212,2713.2,2713.0,0.00646785]
[1646803100895,4.19301324,2713.2,2713.0,0.00646785]
[1646803101100,4.63529984,2713.2,2713.0,0.0129357]
[1646803101294,4.63529984,2713.2,2713.0,0.00646785]
[1646803101901,4.97810794,2713.2,2713.0,0.00646785]
[1646803102099,4.97810794,2713.2,2712.8,1.45683724]
[1646803102300,4.97810794,2713.2,2712.9,0.445]
[1646803102568,4.97810794,2713.2,2713.0,0.00617584]
[1646803103362,4.97810794,2713.2,2712.9,0.92154]
[1646803103762,4.97810794,2713.2,2713.0,0.00617584]
[1646803103763,4.97930794,2713.2,2713.0,0.00617584]
[1646803103961,4.97810794,2713.2,2713.0,0.00617584]
[1646803104563,4.97810794,2713.2,2712.9,0.92154]
[1646803104762,4.97810794,2713.2,2713.0,0.00617584]
[1646803105663,4.97810794,2713.2,2712.9,0.92154]
[1646803106065,4.97810794,2713.2,2713.0,0.00627435]
[1646803106999,4.97810794,2713.2,2712.9,0.92154]
[1646803107202,4.97810794,2713.2,2713.0,0.00627435]
[1646803108202,4.97810794,2713.2,2712.9,0.92154]
[1646803108402,4.97810794,2713.2,2713.0,0.00627435]
[1646803109405,4.97684901,2713.2,2712.9,0.92154]
[1646803109607,4.97684901,2713.2,2713.0,0.00627042]
[1646803110444,4.97551875,2713.2,2713.0,0.00627042]
[1646803110644,4.97551875,2713.2,2712.5,2.7522139]
[1646803110847,4.97551875,2713.2,2713.0,0.00627042]
[1646803111245,3.5,2713.1,2713.0,0.00627042]
[1646803111644,4.97551875,2713.2,2713.0,0.00627042]
[1646803112051,4.97551875,2713.2,2712.4,0.91871455]
[1646803112250,4.97551875,2713.2,2712.9,0.00627052]
[1646803113154,6.0,2713.0,2712.2,0.03736]
[1646803113353,6.0,2713.0,2712.9,6.629e-05]
[1646803113557,0.00073371,2712.7,2712.5,0.02466888]
[1646803114001,0.91027582,2712.6,2712.5,0.02466888]
[1646803114202,4.41027582,2712.6,2712.5,0.02466888]
[1646803114400,3.5,2712.6,2712.2,0.03736]
[1646803115002,3.93240351,2712.6,2712.2,0.03736]
[1646803115200,4.90881431,2712.6,2712.2,0.03736]
[1646803115402,3.5,2712.5,2712.2,0.03736]
[1646803115901,4.3274789,2712.5,2712.2,6e-05]
[1646803116103,8.55090517,2712.5,2712.2,6e-05]
[1646803116303,8.55090517,2712.5,2711.3,2.89176]
[1646803116304,0.97611888,2711.7,2711.3,2.89176]
[1646803116503,0.97611888,2711.7,2711.2,0.95327444]
[1646803116704,0.97611888,2711.7,2711.2,0.3987]
[1646803116909,3.5,2711.6,2711.2,0.3987]
[1646803117104,5.5715986,2711.6,2711.2,0.03]
[1646803117304,5.88467726,2711.6,2711.2,0.03]
[1646803117551,1.46209726,2711.6,2711.2,0.03]
[1646803117747,1.46209726,2711.6,2710.9,0.0372241]
[1646803117748,1.9856231,2711.6,2710.9,0.0172241]
[1646803117950,3.07405184,2711.6,2710.9,0.0172241]
[1646803118149,8.13271065,2711.6,2711.3,0.00670617]
[1646803118348,4.63271065,2711.6,2711.3,0.00670617]
[1646803118947,4.63271065,2711.6,2711.0,0.92217]
[1646803118948,4.63511065,2711.6,2711.0,0.92217]
[1646803119148,4.97791875,2711.6,2711.3,0.00670606]
[1646803120151,4.97791875,2711.6,2711.0,0.0188255]
[1646803120549,8.47791875,2711.6,2711.3,0.00670606]
[1646803120950,4.97791875,2711.6,2711.3,0.00670606]
[1646803121151,8.47791875,2711.6,2711.3,0.02553156]
[1646803121397,8.47791875,2711.6,2711.3,0.0188255]
[1646803121596,8.47791875,2711.6,2711.3,0.02552637]
[1646803122602,9.47791875,2711.6,2711.3,0.0188255]
[1646803122805,8.47791875,2711.6,2711.3,0.02552637]
[1646803123604,0.08024,2711.5,2711.3,0.02552637]
[1646803123804,0.08024,2711.5,2711.3,0.0188255]
[1646803124005,0.08024,2711.5,2711.3,0.02552637]
[1646803124208,1.52527967,2711.5,2711.3,0.02552637]
[1646803124407,3.5,2711.4,2711.3,2.637e-05]
[1646803125043,3.5,2711.4,2710.9,0.04403158]
[1646803125247,4.94503967,2711.4,2710.9,0.0172241]
[1646803125647,1.05738002,2711.3,2710.9,0.0172241]
[1646803125850,6.0,2711.1,2710.7,0.0501]
[1646803126050,3.5,2711.0,2710.7,0.0501]
[1646803126651,0.99769227,2710.8,2710.7,0.0501]
[1646803127151,1.70510884,2710.8,2710.7,0.0501]
[1646803127351,2.5167712,2710.8,2710.7,0.0501]
[1646803127651,6.0,2710.7,2709.8,3.77710664]
[1646803127851,3.5,2710.7,2709.8,3.77710664]
[1646803128056,2.5167712,2710.8,2709.8,4.69968664]
[1646803128257,4.0512016,2710.8,2709.8,4.69968664]
[1646803128455,3.05350933,2710.8,2710.1,3.0]
[1646803128655,3.05350933,2710.8,2710.2,12.0426]
[1646803128896,3.05350933,2710.8,2710.2,12.34930866]
[1646803129100,0.3555851,2710.8,2710.2,16.27154166]
[1646803129302,3.5,2712.0,2710.2,16.27154166]
[1646803129303,0.0805,2712.1,2710.8,0.30535093]
[1646803129496,0.00190523,2712.4,2711.0,11.5976]
[1646803129497,0.0012,2711.4,2711.0,11.5976]
[1646803129698,0.0012,2711.4,2711.0,11.8976]
[1646803130096,0.0024,2711.4,2711.0,11.8976]
[1646803130297,0.2442546,2711.4,2711.1,0.00670651]
[1646803131098,0.1971317,2711.4,2711.0,12.819498]
[1646803131297,0.55537046,2711.4,2711.1,0.00670651]
[1646803131498,1.423274,2711.4,2711.2,1.84383]
[1646803131696,2.19170938,2711.4,2711.2,1.84383]
[1646803131897,3.11250066,2711.4,2711.2,2.14383]
[1646803132097,4.14283902,2711.4,2711.2,2.14383]
[1646803132297,5.01738718,2711.4,2711.2,2.14383]
[1646803132544,5.01738718,2711.4,2711.2,1.8505364]
[1646803133152,2.04674176,2711.4,2711.2,13.0805364]
[1646803133352,0.05169862,2711.4,2711.3,4.0]
[1646803133547,0.75900148,2711.4,2711.3,4.92191]
[1646803133745,0.75900148,2711.4,2711.3,0.92191]
[1646803133746,0.43606774,2711.4,2711.3,0.92191]
[1646803133951,1.07386876,2711.4,2711.3,0.92191]
[1646803134150,0.037701,2712.1,2711.4,2.0]
[1646803134551,0.037701,2712.1,2711.6,1.2016928]
[1646803134750,0.037701,2712.1,2711.2,2.02803]
[1646803134952,0.037701,2712.1,2710.8,11.53535093]
[1646803134953,0.54434606,2711.4,2710.9,0.00296089]
[1646803135253,0.54434606,2711.4,2710.8,0.30535093]
[1646803135652,3.5,2711.3,2710.8,0.30535093]
[1646803136052,1.22293129,2711.1,2710.8,0.30535093]
[1646803136310,1.76727735,2711.1,2710.8,0.30535093]
[1646803137103,3.5,2711.0,2710.8,0.30535093]
[1646803137303,5.06655322,2711.0,2710.8,0.31205303]
[1646803137605,3.5,2710.9,2710.8,0.31205303]
[1646803138204,4.2277104,2710.9,2710.8,0.30535093]
[1646803138405,5.14849322,2710.9,2710.8,0.30535093]
[1646803139008,1.56655322,2710.9,2710.8,0.30535093]
[1646803139206,2.30793412,2710.9,2710.8,0.30535093]
[1646803139407,3.26784828,2710.9,2710.8,0.30535093]
[1646803140246,5.27030534,2710.9,2710.8,0.30535093]
[1646803140447,5.8453221,2710.9,2710.8,0.30535093]
[1646803140648,3.5,2710.8,2710.0,0.1844]
[1646803140847,3.5,2710.7,2710.3,0.02681332]
[1646803141049,5.8453221,2710.9,2710.3,0.02681332]
[1646803141050,3.5,2710.8,2710.3,0.02681332]
[1646803141247,0.5751986,2710.8,2710.3,0.02681332]
[1646803141446,1.56655322,2710.8,2710.3,0.02681332]
[1646803141646,5.06655322,2710.8,2710.3,0.02681332]
[1646803141847,1.56655322,2710.8,2710.0,0.92247]
[1646803142047,5.06655322,2710.8,2710.2,0.00593041]
[1646803142248,2.35201062,2710.8,2710.2,0.00593041]
[1646803142549,6.76784828,2710.8,2710.2,0.00593041]
[1646803142949,3.26784828,2710.8,2710.0,0.92247]
[1646803143352,3.26784828,2710.8,2710.0,0.90840041]
[1646803143353,4.85806712,2710.8,2710.0,0.90840041]
[1646803144004,4.85806712,2710.8,2710.0,1.20840041]
[1646803144404,5.07120654,2710.8,2710.1,0.3676]
[1646803145006,5.07120654,2710.8,2710.6,1.14379279]
[1646803145007,2.23527078,2710.8,2710.6,1.14379279]
[1646803145209,0.1844,2711.5,2710.6,1.14379279]
[1646803145210,0.1844,2711.5,2710.7,12.15218]
[1646803145406,0.5446808,2711.5,2710.7,12.15218]
[1646803145607,0.8192589,2711.5,2710.8,0.3676]
[1646803145813,1.0310498,2711.5,2710.8,0.6676]
[1646803146008,1.4174187,2711.5,2710.8,0.6676]
[1646803146212,2.55940084,2711.5,2710.8,0.6676]
[1646803146410,2.63178976,2711.5,2711.1,0.3676]
[1646803146612,4.99619108,2711.5,2711.0,1.84402]
[1646803146812,4.99619108,2711.5,2710.8,0.3]
[1646803147010,4.99619108,2711.5,2710.7,0.3]
[1646803147211,4.99619108,2711.5,2710.8,0.1844]
[1646803148245,0.00200521,2711.3,2711.0,11.23]
[1646803148444,0.00200521,2711.3,2711.0,11.18]
[1646803149348,3.57877238,2711.5,2711.3,0.3676]
[1646803149549,0.00073371,2712.7,2711.4,9.5]
[1646803149550,0.18513371,2712.7,2711.4,9.5]
[1646803149751,0.6548,2713.3,2711.5,11.5476]
[1646803149947,0.6548,2713.3,2711.7,11.5476]
[1646803149948,1.51087937,2713.0,2711.7,11.5476]
[1646803150148,0.3387852,2713.0,2711.7,11.8476]
[1646803150348,1.29985356,2713.0,2711.7,11.8476]
[1646803150548,0.93866863,2712.9,2712.0,12.24236754]
[1646803150948,0.93866863,2712.9,2712.0,11.18]
[1646803151148,1.75376653,2712.9,2712.0,11.18]
[1646803151401,2.91674657,2712.9,2712.0,11.18]
[1646803151597,3.89295421,2712.9,2712.0,11.18]
[1646803151795,3.99695431,2712.9,2712.0,11.18]
[1646803151993,3.99695431,2712.9,2711.9,2.15325519]
[1646803152408,5.46157489,2712.9,2711.9,2.15325519]
[1646803152595,5.66660411,2712.9,2711.9,2.15325519]
[1646803152797,0.00199518,2712.5,2711.9,2.15325519]
[1646803153398,1.23601556,2712.5,2711.9,2.15325519]
[1646803153605,1.53948216,2712.5,2711.9,1.22183]
[1646803153798,1.53748698,2712.5,2711.9,1.22183]
[1646803154003,0.00199518,2712.3,2711.9,1.22183]
[1646803154400,1.17924546,2712.3,2712.0,11.23]
[1646803154599,1.53948216,2712.3,2712.0,11.23]
[1646803154800,1.53948216,2712.3,2711.9,0.3]
[1646803155046,1.53748698,2712.3,2711.9,11.53]
[1646803155246,1.53948216,2712.3,2711.9,11.53]
[1646803155446,3.202201,2712.3,2711.9,11.53]
[1646803156246,3.20020582,2712.3,2711.9,11.53]
[1646803156447,0.00199518,2712.2,2711.9,11.53]
[1646803156852,0.00199518,2712.2,2711.8,0.92186]
[1646803157052,0.00199518,2712.2,2711.8,0.3]
[1646803157251,0.00199518,2712.2,2711.6,11.8976]
[1646803157452,1.53748698,2712.2,2711.6,11.8976]
[1646803157651,0.00199518,2712.1,2711.8,0.92185]
[1646803157852,0.00199518,2712.1,2711.8,0.3]
[1646803158251,0.00199518,2712.1,2711.4,11.4142]
[1646803158452,1.53948216,2712.1,2711.4,11.7142]
[1646803158652,1.53748698,2712.1,2711.4,0.4842]
[1646803158898,1.53948216,2712.1,2711.4,0.4842]
[1646803159099,1.1197041,2712.0,2711.4,0.1842]
[1646803159496,2.65719108,2712.0,2711.4,0.1842]
[1646803160099,0.00199518,2711.8,2711.4,0.1842]
[1646803160302,0.00199518,2711.8,2710.9,3.02716159]
[1646803160501,1.53948216,2711.8,2711.0,7.36]
[1646803161301,1.53948216,2711.8,2711.1,0.92208]
[1646803161503,0.00199518,2711.5,2711.1,12.15208]
[1646803162004,0.00199518,2711.5,2711.1,12.45208]
[1646803162400,0.51654458,2711.5,2711.1,12.45208]
[1646803162646,0.51654458,2711.5,2711.1,12.35208]
[1646803162647,0.00199518,2711.4,2711.1,12.35208]
[1646803162844,0.00199518,2711.4,2711.1,0.2]
[1646803163044,0.00199518,2711.4,2711.0,7.36]
[1646803163448,0.79045318,2711.4,2711.0,7.36]
[1646803163650,1.54147731,2711.4,2711.0,7.36]
[1646803163849,1.53948213,2711.4,2711.1,12.15209]
[1646803164251,1.53948213,2711.4,2711.1,12.45209]
[1646803164449,2.46468129,2711.4,2711.1,1.22209]
[1646803164651,2.46468129,2711.4,2711.0,7.36]
[1646803164652,3.20020582,2711.4,2711.0,7.66]
[1646803164848,3.20183824,2711.4,2711.1,11.23]
[1646803165250,3.20183824,2711.4,2711.1,12.45209]
[1646803165549,4.7328653,2711.4,2711.1,12.45209]
[1646803165751,4.73123288,2711.4,2711.1,12.45209]
[1646803165950,4.73123288,2711.4,2711.2,14.73]
[1646803166152,4.7328653,2711.4,2711.3,11.23]
[1646803166399,4.7328653,2711.4,2711.3,11.53]
[1646803166802,4.7328653,2711.4,2711.3,0.3]
[1646803167203,4.7328653,2711.4,2711.2,0.3]
[1646803167403,4.7328653,2711.4,2711.0,7.36]
[1646803167404,4.73123288,2711.4,2711.0,7.36]
[1646803168301,4.73123288,2711.4,2710.5,3.0000458]
[1646803168500,0.98704706,2711.1,2710.4,7.36]
[1646803168703,0.98704706,2711.1,2710.4,7.66]
[1646803168904,0.98704706,2711.1,2710.4,7.36]
[1646803169505,2.10940436,2711.1,2710.4,7.36]
[1646803169709,2.52453404,2711.1,2710.4,7.36]
[1646803170351,1.53748698,2711.1,2710.5,14.73]
[1646803170645,1.40301714,2711.1,2710.5,15.58831579]
[1646803170845,2.12753718,2711.1,2710.5,15.58831579]
[1646803171045,0.00167312,2711.4,2710.6,0.19556751]
[1646803171245,0.52790644,2711.1,2710.8,11.23]
[1646803171548,0.52790644,2711.1,2711.0,11.23]
[1646803171746,0.66950644,2711.1,2711.0,11.675]
[1646803171946,1.4505069,2711.1,2711.0,11.975]
[1646803172545,1.4505069,2711.1,2711.0,13.81901]
[1646803173547,2.2389649,2711.1,2711.0,13.81901]
[1646803173803,3.0106332,2711.1,2711.0,13.81901]
[1646803174605,4.60316266,2711.1,2711.0,13.81901]
[1646803174805,4.65788768,2711.1,2711.0,13.81901]
[1646803175207,2.20657108,2711.1,2711.0,17.31901]
[1646803175408,1.21989,2712.2,2711.0,17.31901]
[1646803175409,0.56000997,2712.7,2711.1,0.2206571]
[1646803175607,0.56000997,2712.7,2711.4,0.92173]
[1646803175608,1.51095934,2712.6,2711.4,0.92173]
[1646803175806,1.51095934,2712.6,2711.5,0.445]
[1646803176007,1.90531204,2712.6,2711.5,0.445]
[1646803176212,1.90531204,2712.6,2711.5,1.61227031]
[1646803176213,0.94283594,2712.4,2711.5,1.61227031]
[1646803176908,0.94283594,2712.4,2711.8,0.92183]
[1646803177109,0.94283594,2712.4,2711.4,0.3]
[1646803177410,1.51112332,2712.3,2711.3,0.3029458]
[1646803177650,1.91717746,2712.3,2711.1,3.4115029]
[1646803177847,1.51112332,2712.2,2711.1,3.4115029]
[1646803178049,1.51112332,2712.2,2711.1,4.57890074]
[1646803178448,1.51112332,2712.2,2711.3,0.922]
[1646803178648,2.7821032,2712.2,2711.3,0.922]
[1646803178852,2.7821032,2712.2,2711.1,0.2236029]
[1646803178853,2.43329332,2712.1,2711.1,0.2236029]
[1646803179055,1.51112332,2712.0,2711.1,0.2206571]
[1646803179453,0.00199086,2711.9,2711.1,0.2206571]
[1646803179655,1.31772224,2711.9,2711.1,0.2206571]
[1646803179853,1.62266924,2711.9,2711.1,0.2206571]
[1646803180053,0.88966421,2711.5,2711.1,0.2206571]
[1646803180453,1.62067838,2711.9,2711.1,0.2206571]
[1646803180653,0.00199086,2711.6,2711.1,0.2206571]
[1646803181706,0.00199085,2711.5,2711.1,0.2206571]
[1646803182612,0.272811,2711.5,2711.1,0.2206571]
[1646803182811,1.62067838,2711.5,2711.1,0.2206571]
[1646803183010,1.62266919,2711.5,2711.1,0.2206571]
[1646803183609,1.84865395,2711.5,2711.1,0.2206571]
[1646803183810,3.26502608,2711.5,2711.1,0.2206571]
[1646803184215,3.26701689,2711.5,2711.1,0.2206571]
[1646803184615,3.44711059,2711.5,2711.1,0.2166381]
[1646803184816,4.53953413,2711.5,2711.1,0.2166381]
[1646803185246,4.53754332,2711.5,2711.1,0.2166381]
[1646803185448,4.53953413,2711.5,2711.1,0.2166381]
[1646803186245,4.53754332,2711.5,2711.1,0.2166381]
[1646803186647,4.53953413,2711.5,2711.1,0.2166381]
[1646803187448,4.53754332,2711.5,2711.1,0.2166381]
[1646803187848,4.53953413,2711.5,2711.1,0.2166381]
[1646803188794,4.53754332,2711.5,2711.1,0.2166381]
[1646803188997,4.53953413,2711.5,2711.1,0.2166381]
[1646803189398,4.53953413,2711.5,2711.1,1.1386881]
[1646803190098,4.54152494,2711.5,2711.1,1.1386881]
[1646803190299,4.53953413,2711.5,2711.1,1.1386881]
[1646803191298,4.54130262,2711.5,2711.1,1.1386881]
[1646803191498,4.53931181,2711.5,2711.1,1.1386881]
[1646803192299,4.53754332,2711.5,2711.1,1.1386881]
[1646803192557,4.53931181,2711.5,2711.1,0.2166381]
[1646803193351,3.5,2711.4,2711.1,0.2166381]
[1646803193750,0.7896626,2711.4,2711.1,0.2166381]
[1646803193953,1.62067838,2711.4,2711.1,0.2166381]
[1646803194754,3.5,2711.3,2711.1,0.2166381]
[1646803195857,5.12067838,2711.3,2711.1,0.2166381]
[1646803196601,1.62067838,2711.3,2711.1,0.2166381]
[1646803196799,2.88591898,2711.3,2711.1,0.2166381]
[1646803196999,3.26502608,2711.3,2711.1,0.2166381]
[1646803197802,4.0,2711.2,2710.6,1.35548594]
[1646803198002,1.51153863,2711.1,2710.5,0.55072917]
[1646803198201,1.51153863,2711.1,2710.4,7.36627584]
[1646803198202,3.5,2711.0,2710.4,7.36627584]
[1646803198406,3.945,2711.0,2710.4,7.36627584]
[1646803198603,3.945,2711.0,2710.4,7.36627295]
[1646803198804,4.98258472,2711.0,2710.4,7.36627295]
[1646803199007,5.56567838,2711.0,2710.4,7.36627295]
[1646803199607,5.12067838,2711.0,2710.4,7.36]
[1646803199808,6.018274,2711.0,2710.4,7.36627291]
[1646803200056,6.76502608,2711.0,2710.4,7.36627291]
[1646803200448,0.92358077,2710.6,2710.4,7.36627291]
[1646803200651,0.92358077,2710.6,2710.4,7.36]
[1646803200848,1.96116549,2710.6,2710.4,7.36]
[1646803201050,1.96116549,2710.6,2710.4,7.36627291]
[1646803201051,2.54425915,2710.6,2710.4,7.36627291]
[1646803201251,2.54425915,2710.6,2710.4,0.00627291]
[1646803201849,3.5,2710.5,2710.4,0.00627291]
[1646803202049,4.18860685,2710.6,2710.4,0.00627291]
[1646803202251,4.18860685,2710.6,2710.4,0.00623611]
[1646803202452,3.5,2710.5,2710.4,0.00623611]
[1646803202651,4.18860685,2710.6,2710.4,0.00623611]
[1646803202851,5.01528295,2710.6,2710.4,0.00623611]
[1646803203052,5.38766289,2710.6,2709.9,8.71254014]
[1646803203251,3.5,2710.5,2709.9,8.71254014]
[1646803203451,3.5,2710.5,2710.4,0.00623611]
[1646803203655,5.38766289,2710.6,2710.4,0.00623611]
[1646803203902,3.5,2710.5,2710.4,0.00623611]
[1646803204303,3.5,2710.5,2709.9,8.71254014]
[1646803204702,3.5,2710.5,2710.4,0.00623611]
[1646803204901,1.31573138,2710.5,2710.4,0.00623611]
[1646803205102,1.62067838,2710.5,2710.4,0.00623611]
[1646803205501,1.62067838,2710.5,2709.9,8.71254014]
[1646803205502,5.12067838,2710.5,2709.9,8.71254014]
[1646803205802,1.62067838,2710.5,2710.3,0.00627444]
[1646803206002,3.26502608,2710.5,2710.3,0.00627444]
[1646803206804,3.26502608,2710.5,2709.9,7.4733426]
[1646803207104,4.46408212,2710.5,2710.3,0.00627454]
[1646803207753,5.62696041,2710.5,2710.3,0.00627454]
[1646803207954,5.62696041,2710.5,2709.9,7.4733426]
[1646803208154,5.62696041,2710.5,2710.3,0.00627454]
[1646803208354,4.46408212,2710.5,2710.3,0.00627454]
[1646803209361,4.46408212,2710.5,2710.4,12.13913722]
[1646803209859,4.46408212,2710.5,2710.4,11.23]
[1646803210460,4.46408212,2710.5,2710.3,11.23]
[1646803210762,4.46408212,2710.5,2710.3,11.2362731]
[1646803211407,4.46408212,2710.5,2710.4,11.23]
[1646803212701,4.46408212,2710.5,2710.2,11.23]
[1646803212898,4.46408212,2710.5,2710.3,0.00623622]
[1646803213908,4.46408212,2710.5,2710.2,11.23]
[1646803214106,4.46408212,2710.5,2710.3,0.00623632]
[1646803215147,4.46408212,2710.5,2710.2,11.23]
[1646803215346,4.46408212,2710.5,2710.3,0.00623632]
[1646803215750,4.46408212,2710.5,2710.1,2.36988584]
[1646803215751,4.46408212,2710.5,2710.4,10.30698996]
[1646803215949,7.96408212,2710.5,2710.2,1.01335318]
[1646803216148,1.51193305,2710.4,2710.2,1.01335318]
[1646803216554,4.46408212,2710.5,2710.2,1.01335318]
[1646803216951,4.46408212,2710.5,2710.3,1.01335318]
[1646803217150,4.46408212,2710.5,2709.9,10.86]
[1646803217151,4.46408212,2710.5,2710.4,4.51335318]
[1646803217449,4.46408212,2710.5,2710.4,12.24335318]
[1646803217649,4.46408212,2710.5,2710.4,12.01821794]
[1646803217650,5.55007975,2710.5,2710.4,12.01821794]
[1646803217849,5.55007975,2710.5,2709.9,7.36]
[1646803217850,1.61273065,2710.3,2709.9,7.36]
[1646803218051,1.51193499,2710.2,2709.8,3.40830664]
[1646803218649,3.23340903,2710.3,2709.8,3.40830664]
[1646803218905,4.10936331,2710.3,2709.8,3.40830664]
[1646803219106,5.75371101,2710.3,2709.8,3.40830664]
[1646803220005,6.46278381,2710.3,2709.8,3.40830664]
[1646803220208,1.51220203,2710.2,2709.9,0.00667581]
[1646803220406,1.95720203,2710.2,2709.9,0.00667581]
[1646803220609,1.51220203,2710.1,2709.9,0.00667581]
[1646803220807,1.51220203,2710.1,2709.5,0.02670724]
[1646803220808,6.0,2710.0,2709.5,0.02670724]
[1646803221011,2.01135203,2709.9,2709.5,0.02670724]
[1646803221206,0.49915,2709.9,2709.0,0.0029458]
[1646803221509,1.42215,2709.9,2708.9,3.85553]
[1646803221713,0.05415,2709.9,2708.9,3.85553]
[1646803221911,1.62067838,2710.0,2709.2,0.92272]
[1646803222108,3.0396296,2710.0,2709.2,0.92272]
[1646803222310,4.40289462,2710.0,2709.0,11.23]
[1646803222560,4.40289462,2710.0,2708.9,3.85553]
[1646803222561,3.5,2709.9,2708.9,4.05037119]
[1646803222749,3.5,2709.9,2708.9,3.85553]
[1646803223148,5.17486838,2709.9,2708.9,3.85553]
[1646803223549,6.09791838,2709.9,2708.9,3.85553]
[1646803223749,6.39791838,2709.9,2708.9,3.85553]